bitfinex-derivatives/quotes_BNBF0:USTF0_20230831
["timestamp","ask_amount","ask_price","bid_price","bid_amount"]
[1693486537254,0.07269289,223.88,223.63,0.18985452]
[1693486537449,0.07269289,223.88,223.64,0.18985452]
[1693486537650,0.07269289,223.88,223.59,0.07307991]
[1693486537950,0.07269289,223.89,223.6,0.18986133]
[1693486538951,0.07269289,223.89,223.61,0.18986133]
[1693486539257,0.07269289,223.89,223.62,0.18986133]
[1693486539458,0.07269289,223.89,223.59,0.18986133]
[1693486539650,0.07269289,223.89,223.6,0.18986133]
[1693486539854,0.07269289,223.89,223.59,0.18986133]
[1693486540050,0.07269289,223.89,223.6,0.18986133]
[1693486540256,0.07269289,223.89,223.59,0.18986133]
[1693486540456,0.07269289,223.89,223.6,0.18986133]
[1693486540658,0.07269289,223.89,223.59,0.18986133]
[1693486540958,0.07269289,223.89,223.6,0.18986133]
[1693486541258,0.07269289,223.89,223.61,0.18986133]
[1693486541558,0.07269289,223.89,223.62,0.18986133]
[1693486541751,0.07269289,223.9,223.63,0.18986133]
[1693486541958,0.07269289,223.89,223.58,0.18986133]
[1693486542152,0.07269289,223.89,223.59,0.18986133]
[1693486542353,0.07269289,223.89,223.6,0.18986133]
[1693486542557,0.07269289,223.89,223.61,0.18986133]
[1693486542754,0.07269289,223.9,223.62,0.18986133]
[1693486542956,0.07269289,223.9,223.63,0.18986133]
[1693486543153,0.07269289,223.9,223.64,0.18986133]
[1693486543459,0.07269289,223.9,223.57,0.07307991]
[1693486543657,0.07269289,223.9,223.58,0.18986634]
[1693486545058,0.07269289,223.9,223.56,0.07307991]
[1693486545059,0.07269289,223.9,223.59,0.18986634]
[1693486545259,0.07269289,223.9,223.6,0.18986634]
[1693486545452,0.07269289,223.9,223.57,0.18986634]
[1693486545660,0.07269289,223.9,223.58,0.18986634]
[1693486545862,0.07269289,223.9,223.59,0.18986634]
[1693486546062,0.07269289,223.9,223.6,0.18986634]
[1693486546362,0.07269289,223.9,223.61,0.18986634]
[1693486546562,0.07269289,223.9,223.57,0.18986634]
[1693486546860,0.07269289,223.9,223.58,0.18986634]
[1693486547062,0.07269289,223.9,223.59,0.18986634]
[1693486547262,0.07269289,223.9,223.6,0.18986634]
[1693486547462,0.07269289,223.89,223.61,0.18986634]
[1693486547662,0.07269289,223.9,223.62,0.18986634]
[1693486547862,0.07269289,223.86,223.52,0.07307991]
[1693486548158,0.07269289,223.85,223.53,0.19004133]
[1693486548363,0.07269289,223.85,223.54,0.19004133]
[1693486548559,0.07269289,223.85,223.52,0.19004133]
[1693486548761,0.07269289,223.85,223.53,0.19004133]
[1693486548956,0.07269289,223.85,223.52,0.19004133]
[1693486549157,0.07269289,223.85,223.53,0.19004133]
[1693486549461,0.07269289,223.85,223.54,0.19004133]
[1693486549663,0.07269289,223.85,223.55,0.19004133]
[1693486549864,0.07269289,223.84,223.56,0.19004133]
[1693486550064,0.07269289,223.84,223.57,0.19004133]
[1693486550264,0.07269289,223.84,223.58,0.19004133]
[1693486550466,0.07269289,223.84,223.51,0.07307991]
[1693486550667,0.07269289,223.84,223.52,0.1900556]
[1693486551263,0.07269289,223.84,223.53,0.1900556]
[1693486551464,0.07269289,223.84,223.54,0.1900556]
[1693486551659,0.07269289,223.84,223.51,0.1900556]
[1693486551864,0.07269289,223.84,223.52,0.1900556]
[1693486552065,0.07269289,223.84,223.53,0.1900556]
[1693486552363,0.07269289,223.83,223.54,0.1900556]
[1693486552570,0.07269289,223.83,223.55,0.1900556]
[1693486552765,0.07269289,223.83,223.56,0.1900556]
[1693486552970,0.07269289,223.83,223.51,0.1900556]
[1693486553162,0.07269289,223.83,223.52,0.1900556]
[1693486553469,0.07269289,223.83,223.53,0.1900556]
[1693486553663,0.07269289,223.83,223.54,0.1900556]
[1693486553866,0.07269289,223.83,223.55,0.1900556]
[1693486554067,0.07269289,223.83,223.51,0.1900556]
[1693486557664,0.07269289,223.83,223.43,0.14615983]
[1693486557665,0.07269289,223.83,223.5,0.26313551]
[1693486557863,0.07269289,223.84,223.51,0.1900556]
[1693486559572,0.07269289,223.84,223.52,0.1900556]
[1693486559771,0.07269289,223.84,223.53,0.1900556]
[1693486559976,0.07269289,223.84,223.5,0.1900556]
[1693486560273,0.07269289,223.84,223.51,0.1900556]
[1693486560474,0.07269289,223.84,223.5,0.1900556]
[1693486560672,0.07269289,223.84,223.51,0.1900556]
[1693486560873,0.07269289,223.84,223.52,0.1900556]
[1693486561172,0.07269289,223.84,223.53,0.1900556]
[1693486561370,0.07269289,223.84,223.54,0.1900556]
[1693486561573,0.07269289,223.84,223.55,0.1900556]
[1693486561773,0.07269289,223.84,223.56,0.1900556]
[1693486561969,0.07269289,223.84,223.5,0.1900556]
[1693486562274,0.07269289,223.84,223.51,0.1900556]
[1693486562473,0.07269289,223.84,223.52,0.1900556]
[1693486562669,0.07269289,223.84,223.53,0.1900556]
[1693486562872,0.07269289,223.84,223.5,0.1900556]
[1693486563070,0.07269289,223.84,223.51,0.1900556]
[1693486563276,0.07269289,223.84,223.52,0.1900556]
[1693486563575,0.07269289,223.84,223.53,0.1900556]
[1693486563776,0.07269289,223.84,223.54,0.1900556]
[1693486563978,0.07269289,223.84,223.55,0.1900556]
[1693486564177,0.07269289,223.84,223.5,0.1900556]
[1693486564478,0.07269289,223.84,223.51,0.1900556]
[1693486564775,0.07269289,223.84,223.52,0.1900556]
[1693486564978,0.07269289,223.84,223.53,0.1900556]
[1693486565171,0.07269289,223.84,223.54,0.1900556]
[1693486565478,0.07269289,223.84,223.55,0.1900556]
[1693486565677,0.07269289,223.84,223.5,0.1900556]
[1693486565871,0.07269289,223.84,223.51,0.1900556]
[1693486566078,0.07269289,223.84,223.52,0.1900556]
[1693486566276,0.07269289,223.84,223.53,0.1900556]
[1693486566472,0.07269289,223.84,223.54,0.1900556]
[1693486566674,0.07269289,223.79,223.5,0.1900556]
[1693486566978,0.07269289,223.79,223.51,0.19029097]
[1693486567174,0.07269289,223.79,223.44,0.26337088]
[1693486567379,0.07269289,223.8,223.45,0.19029097]
[1693486567574,0.07269289,223.8,223.44,0.19029097]
[1693486567779,0.07269289,223.8,223.45,0.19029097]
[1693486567975,0.07269289,223.8,223.44,0.19029097]
[1693486568176,0.07269289,223.8,223.45,0.19029097]
[1693486568479,0.07269289,223.81,223.46,0.19029097]
[1693486568674,0.07269289,223.81,223.42,0.07307991]
[1693486568675,0.07269289,223.81,223.47,0.19029097]
[1693486568877,0.07269289,223.81,223.43,0.19029097]
[1693486569079,0.07269289,223.81,223.44,0.19029097]
[1693486569275,0.07269289,223.81,223.43,0.19029097]
[1693486569472,0.07269289,223.81,223.44,0.19029097]
[1693486569675,0.07269289,223.81,223.45,0.19029097]
[1693486569973,0.07269289,223.81,223.46,0.19029097]
[1693486570281,0.07269289,223.82,223.47,0.19029097]
[1693486570578,0.07269289,223.82,223.48,0.19029097]
[1693486570778,0.07269289,223.82,223.42,0.19029097]
[1693486570978,0.07269289,223.82,223.43,0.19029097]
[1693486571280,0.07269289,223.82,223.44,0.19029097]
[1693486571474,0.07269289,223.82,223.41,0.19029097]
[1693486571679,0.07269289,223.82,223.42,0.19029097]
[1693486571875,0.07269289,223.82,223.43,0.19029097]
[1693486572078,0.07269289,223.82,223.44,0.19029097]
[1693486572281,0.07269289,223.82,223.45,0.19029097]
[1693486572481,0.07269289,223.82,223.46,0.19029097]
[1693486572684,0.07269289,223.82,223.47,0.19029097]
[1693486572883,0.07269289,223.82,223.48,0.19029097]
[1693486573086,0.07269289,223.82,223.41,0.19029097]
[1693486573280,0.07269289,223.82,223.42,0.19029097]
[1693486573484,0.07269289,223.82,223.4,0.07307991]
[1693486573485,0.07269289,223.82,223.41,0.19029097]
[1693486573679,0.07269289,223.82,223.42,0.19029097]
[1693486573883,0.07269289,223.82,223.41,0.19029097]
[1693486574082,0.07269289,223.82,223.42,0.19029097]
[1693486574282,0.07269289,223.82,223.41,0.19029097]
[1693486574483,0.07269289,223.82,223.42,0.19029097]
[1693486574782,0.07269289,223.81,223.43,0.19029097]
[1693486574983,0.07269289,223.81,223.41,0.19029097]
[1693486575183,0.07269289,223.82,223.42,0.19029097]
[1693486575383,0.07269289,223.82,223.41,0.19029097]
[1693486575587,0.07269289,223.82,223.42,0.19029097]
[1693486575789,0.07269289,223.82,223.41,0.19029097]
[1693486576085,0.07269289,223.81,223.42,0.19029097]
[1693486576287,0.07269289,223.81,223.41,0.19029097]
[1693486576487,0.07269289,223.81,223.42,0.19029097]
[1693486576687,0.07269289,223.81,223.4,0.07307991]
[1693486576688,0.07269289,223.81,223.41,0.19029097]
[1693486576889,0.07269289,223.81,223.42,0.19029097]
[1693486577091,0.07269289,223.81,223.4,0.07307991]
[1693486577092,0.07269289,223.81,223.41,0.19029097]
[1693486577389,0.07269289,223.81,223.42,0.19029097]
[1693486577688,0.07269289,223.81,223.43,0.19029097]
[1693486577888,0.07269289,223.8,223.41,0.19029097]
[1693486578086,0.07269289,223.8,223.42,0.19029097]
[1693486578285,0.07269289,223.8,223.41,0.19029097]
[1693486578485,0.07269289,223.8,223.42,0.19029097]
[1693486578686,0.07269289,223.81,223.41,0.19029097]
[1693486578887,0.07269289,223.8,223.42,0.19029097]
[1693486579882,0.14538579,223.82,223.42,0.19029097]
[1693486579883,0.07269289,223.79,223.42,0.19029097]
[1693486580691,0.07269289,223.79,223.42,0.26337088]
[1693486580892,0.07269289,223.79,223.43,0.19029097]
[1693486581292,0.07269289,223.78,223.43,0.19029097]
[1693486581492,0.07269289,223.78,223.44,0.19029097]
[1693486581693,0.07269289,223.78,223.45,0.19029097]
[1693486581992,0.07269289,223.78,223.35,0.14615983]
[1693486581993,0.07269289,223.77,223.46,0.19029097]
[1693486582194,0.07269289,223.77,223.47,0.19029097]
[1693486582395,0.07269289,223.77,223.48,0.19029097]
[1693486582591,0.07269289,223.77,223.49,0.19029097]
[1693486582787,0.07269289,223.77,223.5,0.19029097]
[1693486582991,0.07269289,223.77,223.42,0.07307991]
[1693486583194,0.07269289,223.77,223.43,0.19029342]
[1693486587897,0.07269289,223.76,223.43,0.19029342]
[1693486588996,0.07269289,223.77,223.43,0.26337333]
[1693486589199,0.07269289,223.77,223.44,0.19029342]
[1693486589499,0.07269289,223.76,223.44,0.19029342]
[1693486589698,0.07269289,223.76,223.43,0.19029342]
[1693486589894,0.07269289,223.76,223.44,0.19029342]
[1693486590297,0.07269289,223.76,223.43,0.26337333]
[1693486590498,0.07269289,223.76,223.44,0.19029342]
[1693486592896,0.07269289,223.75,223.44,0.19029342]
[1693486594703,0.07269289,223.74,223.44,0.26337333]
[1693486595001,0.07269289,223.74,223.45,0.19029342]
[1693486596798,0.07269289,223.75,223.45,0.19029342]
[1693486596999,0.07269289,223.74,223.45,0.19029342]
[1693486598401,0.07269289,223.73,223.45,0.26337333]
[1693486598598,0.07269289,223.73,223.46,0.19029342]
[1693486599002,0.07269289,223.74,223.46,0.19029342]
[1693486599407,0.07269289,223.73,223.46,0.26337333]
[1693486599706,0.07269289,223.73,223.47,0.19029342]
[1693486600311,0.07269289,223.72,223.47,0.26337333]
[1693486600509,0.07269289,223.72,223.48,0.19029342]
[1693486601112,0.07269289,223.72,223.47,0.19029342]
[1693486601410,0.07269289,223.7,223.48,0.26337333]
[1693486601610,0.07269289,223.7,223.49,0.19029342]
[1693486604815,0.07269289,223.71,223.49,0.19029342]
[1693486605007,0.07269289,223.7,223.49,0.19029342]
[1693486607315,0.07269289,223.71,223.49,0.19029342]
[1693486607717,0.07269289,223.71,223.49,0.26337333]
[1693486608018,0.07269289,223.71,223.5,0.19029342]
[1693486611421,0.07269289,223.71,223.5,0.26337333]
[1693486611622,0.07269289,223.71,223.51,0.19029342]
[1693486628023,0.07269289,223.7,223.51,0.19029342]
[1693486628225,0.07269289,223.7,223.49,0.07307991]
[1693486628428,0.07269289,223.7,223.5,0.19031643]
[1693486629934,0.07269289,223.7,223.48,0.07307991]
[1693486630134,0.07269289,223.7,223.49,0.19034167]
[1693486634041,0.07269289,223.7,223.5,0.19034167]
[1693486634241,0.07269289,223.7,223.48,0.19034167]
[1693486634437,0.07269289,223.7,223.49,0.19034163]
[1693486635039,0.07269289,223.7,223.5,0.19034163]
[1693486635239,0.07269289,223.7,223.48,0.19034163]
[1693486635440,0.07269289,223.7,223.49,0.19034095]
[1693486635640,0.07269289,223.7,223.48,0.19034095]
[1693486635835,0.07269289,223.7,223.49,0.19034095]
[1693486636038,0.07269289,223.7,223.5,0.19034095]
[1693486636237,0.07269289,223.7,223.47,0.07307991]
[1693486636442,0.07269289,223.7,223.48,0.19033942]
[1693486637744,0.07269289,223.71,223.48,0.19033942]
[1693486638439,0.07269289,223.7,223.48,0.19033942]
[1693486639045,0.07269289,223.7,223.49,0.19033942]
[1693486639243,0.07269289,223.7,223.48,0.19033942]
[1693486639442,0.07269289,223.7,223.49,0.19036243]
[1693486639743,0.07269289,223.7,223.46,0.07307991]
[1693486639939,0.07269289,223.7,223.47,0.19036081]
[1693486640942,0.07269289,223.65,223.47,0.19036081]
[1693486641247,0.07269289,223.65,223.4,0.07307991]
[1693486641446,0.07269289,223.65,223.41,0.19057077]
[1693486641646,0.07269289,223.64,223.41,0.19057077]
[1693486641848,0.07269289,223.66,223.41,0.19057077]
[1693486642051,0.07269289,223.66,223.39,0.19057077]
[1693486642346,0.07269289,223.66,223.4,0.19057077]
[1693486642547,0.07269289,223.66,223.41,0.19057077]
[1693486642747,0.07269289,223.66,223.39,0.19057077]
[1693486642945,0.07269289,223.66,223.4,0.19057077]
[1693486643142,0.07269289,223.68,223.41,0.19057077]
[1693486643345,0.07269289,223.68,223.38,0.19057077]
[1693486643540,0.07269289,223.68,223.39,0.19057077]
[1693486643746,0.07269289,223.68,223.4,0.19057077]
[1693486643945,0.07269289,223.68,223.38,0.19057077]
[1693486644143,0.07269289,223.68,223.41,0.19057077]
[1693486644342,0.07269289,223.68,223.42,0.19057077]
[1693486644549,0.07269289,223.68,223.37,0.19057077]
[1693486644848,0.07269289,223.68,223.38,0.19057077]
[1693486645042,0.07269289,223.69,223.39,0.19057077]
[1693486645249,0.07269289,223.69,223.4,0.19057077]
[1693486645450,0.07269289,223.69,223.36,0.19057077]
[1693486645646,0.07269289,223.69,223.37,0.19057077]
[1693486645851,0.07269289,223.69,223.36,0.19057077]
[1693486646150,0.07269289,223.69,223.37,0.19057077]
[1693486646452,0.07269289,223.69,223.38,0.19057077]
[1693486646651,0.07269289,223.69,223.39,0.19057077]
[1693486646850,0.07269289,223.69,223.35,0.19057077]
[1693486647045,0.07269289,223.69,223.36,0.19057077]
[1693486647245,0.07269289,223.69,223.37,0.19057077]
[1693486647450,0.07269289,223.69,223.38,0.19057077]
[1693486647751,0.07269289,223.69,223.39,0.19057077]
[1693486647950,0.07269289,223.7,223.4,0.19057077]
[1693486648148,0.07269289,223.69,223.41,0.19057077]
[1693486648348,0.07269289,223.69,223.34,0.19057077]
[1693486648549,0.07269289,223.69,223.35,0.19057077]
[1693486648749,0.07269289,223.69,223.36,0.19057077]
[1693486648949,0.07269289,223.7,223.34,0.19057077]
[1693486649152,0.07269289,223.7,223.35,0.19057077]
[1693486649350,0.07269289,223.7,223.33,0.19057077]
[1693486649550,0.07269289,223.7,223.34,0.19057077]
[1693486649854,0.07269289,223.7,223.35,0.19057077]
[1693486650046,0.07269289,223.7,223.34,0.19057077]
[1693486650250,0.07269289,223.7,223.35,0.19057077]
[1693486650451,0.07269289,223.7,223.36,0.19057077]
[1693486650647,0.07269289,223.7,223.34,0.19057077]
[1693486650848,0.07269289,223.7,223.35,0.19057077]
[1693486651053,0.07269289,223.7,223.33,0.19057077]
[1693486651353,0.07269289,223.7,223.34,0.19057077]
[1693486651652,0.07269289,223.7,223.35,0.19057077]
[1693486651953,0.07269289,223.7,223.36,0.19057077]
[1693486652155,0.07269289,223.7,223.33,0.19057077]
[1693486652453,0.07269289,223.7,223.34,0.19057077]
[1693486652654,0.07269289,223.7,223.35,0.19057077]
[1693486652848,0.07269289,223.71,223.33,0.19057077]
[1693486653047,0.07269289,223.71,223.34,0.19057077]
[1693486653251,0.07269289,223.71,223.33,0.19057077]
[1693486653451,0.07269289,223.71,223.34,0.19057077]
[1693486653654,0.07269289,223.71,223.35,0.19057077]
[1693486653849,0.07269289,223.71,223.36,0.19057077]
[1693486654052,0.07269289,223.71,223.33,0.19057077]
[1693486654249,0.07269289,223.71,223.34,0.19057077]
[1693486654451,0.07269289,223.71,223.35,0.19057077]
[1693486654652,0.07269289,223.71,223.36,0.19057077]
[1693486654855,0.07269289,223.71,223.37,0.19057077]
[1693486655055,0.07269289,223.71,223.33,0.19057077]
[1693486655256,0.07269289,223.71,223.34,0.19057077]
[1693486655455,0.07269289,223.71,223.35,0.19057077]
[1693486655654,0.07269289,223.71,223.36,0.19057077]
[1693486655854,0.07269289,223.71,223.33,0.19057077]
[1693486656055,0.07269289,223.71,223.34,0.19057077]
[1693486656358,0.07269289,223.71,223.35,0.19057077]
[1693486656561,0.07269289,223.71,223.36,0.19057077]
[1693486656761,0.07269289,223.71,223.33,0.19057077]
[1693486657062,0.07269289,223.71,223.34,0.19057077]
[1693486657362,0.07269289,223.71,223.35,0.19057077]
[1693486657558,0.07269289,223.71,223.36,0.19057077]
[1693486657760,0.07269289,223.71,223.37,0.19057077]
[1693486658064,0.07269289,223.71,223.38,0.19057077]
[1693486658262,0.07269289,223.71,223.39,0.19057077]
[1693486658463,0.07269289,223.71,223.4,0.19057077]
[1693486658664,0.07269289,223.71,223.33,0.19057077]
[1693486659963,0.07269289,223.7,223.33,0.19057077]
[1693486663966,0.07269289,223.69,223.33,0.19057077]
[1693486665867,0.07269289,223.69,223.33,0.26365068]
[1693486666067,0.07269289,223.69,223.34,0.19057077]
[1693486666563,0.07269289,223.68,223.34,0.19057077]
[1693486666763,0.07269289,223.68,223.35,0.19057077]
[1693486666969,0.07269289,223.68,223.36,0.19057077]
[1693486667262,0.07269289,223.68,223.37,0.19057077]
[1693486667468,0.07269289,223.68,223.38,0.19057077]
[1693486667665,0.07269289,223.68,223.39,0.19057077]
[1693486667865,0.07269289,223.68,223.33,0.26365068]
[1693486668064,0.07269289,223.68,223.34,0.19057077]
[1693486668866,0.07269289,223.67,223.34,0.19057077]
[1693486669367,0.07269289,223.68,223.34,0.19057077]
[1693486669764,0.07269289,223.67,223.34,0.19057077]
[1693486670970,0.07269289,223.66,223.34,0.26365068]
[1693486671171,0.07269289,223.66,223.35,0.19057077]
[1693486672767,0.07269289,223.65,223.35,0.26365068]
[1693486672972,0.07269289,223.65,223.36,0.19057077]
[1693486673870,0.07269289,223.64,223.36,0.26365068]
[1693486674065,0.07269289,223.64,223.37,0.19057077]
[1693486674769,0.07269289,223.63,223.37,0.26365068]
[1693486674974,0.07269289,223.63,223.38,0.19057077]
[1693486675875,0.07269289,223.61,223.39,0.07307991]
[1693486676075,0.07269289,223.61,223.4,0.19057077]
[1693486676270,0.07269289,223.61,223.4,0.26365068]
[1693486676473,0.07269289,223.61,223.41,0.19057077]
[1693486676674,0.07269289,223.61,223.39,0.07307991]
[1693486676870,0.07269289,223.61,223.4,0.1906251]
[1693486679276,0.07269289,223.61,223.4,0.26370501]
[1693486679472,0.07269289,223.62,223.41,0.1906251]
[1693486680581,0.07269289,223.61,223.41,0.1906251]
[1693486681781,0.14538579,223.64,223.41,0.1906251]
[1693486681782,0.07269289,223.62,223.41,0.1906251]
[1693486687889,0.07269289,223.62,223.41,0.26370501]
[1693486688081,0.07269289,223.62,223.42,0.1906251]
[1693486691890,0.07269289,223.62,223.41,0.1906251]
[1693486692083,0.07269289,223.62,223.42,0.19061306]
[1693486692283,0.07269289,223.62,223.4,0.07307991]
[1693486692487,0.07269289,223.62,223.41,0.19061383]
[1693486693585,0.07269289,223.62,223.41,0.26369374]
[1693486693789,0.07269289,223.62,223.42,0.19061383]
[1693486695693,0.07269289,223.62,223.4,0.07307991]
[1693486695888,0.07269289,223.62,223.41,0.26370243]
[1693486696089,0.07269289,223.62,223.42,0.19062252]
[1693486696890,0.07269289,223.62,223.4,0.07307991]
[1693486697091,0.07269289,223.62,223.41,0.19062715]
[1693486719503,0.07269289,223.62,223.4,0.19062715]
[1693486721709,0.07269289,223.62,223.4,0.26370706]
[1693486721910,0.07269289,223.62,223.41,0.19062715]
[1693486725716,0.07269289,223.61,223.41,0.19062715]
[1693486729418,0.07269289,223.61,223.4,0.19062715]
[1693486729717,0.07269289,223.61,223.41,0.19065496]
[1693486730314,0.07269289,223.61,223.4,0.19065496]
[1693486730616,0.07269289,223.61,223.41,0.1906543]
[1693486730817,0.07269289,223.61,223.39,0.07307991]
[1693486731216,0.07269289,223.61,223.4,0.26373405]
[1693486731413,0.07269289,223.61,223.41,0.19065414]
[1693486734813,0.07269289,223.61,223.4,0.19065414]
[1693486735016,0.07269289,223.61,223.41,0.19065035]
[1693486735216,0.07269289,223.61,223.39,0.07307991]
[1693486735420,0.07269289,223.61,223.4,0.19065339]
[1693486736722,0.07269289,223.6,223.4,0.19065339]
[1693486737422,0.07269289,223.61,223.4,0.19065339]
[1693486741521,0.07269289,223.61,223.4,0.2637333]
[1693486741818,0.07269289,223.61,223.41,0.19065339]
[1693486743723,0.07269289,223.62,223.41,0.19065339]
[1693486743923,0.07269289,223.61,223.41,0.19065339]
[1693486744322,0.07269289,223.62,223.41,0.19065339]
[1693486745620,0.07269289,223.61,223.41,0.19065339]
[1693486746020,0.07269289,223.62,223.41,0.19065339]
[1693486746425,0.07269289,223.61,223.41,0.19065339]
[1693486750523,0.07269289,223.66,223.45,0.07307991]
[1693486750823,0.07269289,223.7,223.46,0.19065339]
[1693486751023,0.07269289,223.7,223.45,0.19065339]
[1693486751223,0.07269289,223.69,223.46,0.19065339]
[1693486751426,0.07269289,223.69,223.45,0.19065339]
[1693486751622,0.07269289,223.69,223.46,0.19065339]
[1693486751822,0.07269289,223.69,223.47,0.19065339]
[1693486752027,0.07269289,223.71,223.45,0.19065339]
[1693486752224,0.07269289,223.71,223.46,0.19040867]
[1693486752428,0.07269289,223.71,223.47,0.19040867]
[1693486752728,0.07269289,223.71,223.42,0.07307991]
[1693486753023,0.07269289,223.71,223.43,0.19041073]
[1693486753628,0.07269289,223.72,223.43,0.19041073]
[1693486753826,0.07269289,223.72,223.44,0.19041073]
[1693486754029,0.07269289,223.72,223.45,0.19041073]
[1693486754228,0.07269289,223.72,223.46,0.19041073]
[1693486754427,0.07269289,223.72,223.42,0.19041073]
[1693486754628,2.4230966,223.86,223.41,0.07307991]
[1693486754629,0.07269289,223.73,223.43,0.19041073]
[1693486754930,0.07269289,223.73,223.44,0.19041073]
[1693486755130,0.07269289,223.73,223.45,0.19041073]
[1693486755426,0.07269289,223.73,223.46,0.19041073]
[1693486755625,0.07269289,223.73,223.42,0.19041073]
[1693486755829,0.07269289,223.73,223.43,0.19041073]
[1693486756025,0.07269289,223.73,223.41,0.19041073]
[1693486756230,0.07269289,223.74,223.42,0.19041073]
[1693486757130,0.07269289,223.74,223.43,0.19041073]
[1693486757331,0.07269289,223.74,223.4,0.07307991]
[1693486757332,0.07269289,223.74,223.44,0.19041073]
[1693486757530,0.07269289,223.74,223.45,0.19041073]
[1693486757727,0.07269289,223.75,223.46,0.19041073]
[1693486757929,0.07269289,223.75,223.47,0.19041073]
[1693486758126,0.07269289,223.75,223.4,0.07307991]
[1693486758127,0.07269289,223.75,223.41,0.19041073]
[1693486758330,0.07269289,223.75,223.42,0.19041073]
[1693486758531,0.07269289,223.75,223.43,0.19041073]
[1693486758733,0.07269289,223.75,223.44,0.19041073]
[1693486758933,0.07269289,223.75,223.45,0.19041073]
[1693486759137,0.07269289,223.75,223.4,0.19041073]
[1693486759337,0.07269289,223.75,223.41,0.19041073]
[1693486759536,0.07269289,223.75,223.4,0.19041073]
[1693486759736,0.07269289,223.75,223.41,0.19041073]
[1693486759937,0.07269289,223.75,223.42,0.19041073]
[1693486760138,0.07269289,223.76,223.43,0.19041073]
[1693486760341,0.07269289,223.76,223.4,0.19041073]
[1693486760537,0.07269289,223.76,223.41,0.19041073]
[1693486760841,0.07269289,223.77,223.42,0.19041073]
[1693486761043,0.07269289,223.77,223.41,0.19041073]
[1693486761239,0.07269289,223.77,223.43,0.19041073]
[1693486761543,0.07269289,223.77,223.44,0.19041073]
[1693486761737,0.07269289,223.77,223.41,0.19041073]
[1693486761937,0.07269289,223.77,223.45,0.19041073]
[1693486762138,0.07269289,223.77,223.46,0.19041073]
[1693486762338,0.07269289,223.77,223.47,0.19041073]
[1693486762534,0.07269289,223.77,223.48,0.19041073]
[1693486762740,0.07269289,223.77,223.4,0.19041073]
[1693486762940,0.07269289,223.77,223.41,0.19041073]
[1693486763241,0.07269289,223.77,223.42,0.19041073]
[1693486763442,0.07269289,223.77,223.43,0.19041073]
[1693486763739,0.07269289,223.77,223.44,0.19041073]
[1693486763939,0.07269289,223.77,223.45,0.19041073]
[1693486764141,0.07269289,223.77,223.4,0.19041073]
[1693486764442,0.07269289,223.77,223.41,0.19041073]
[1693486764641,0.14538579,223.8,223.42,0.19041073]
[1693486764642,0.07269289,223.78,223.42,0.19041073]
[1693486764835,0.07269289,223.78,223.43,0.19041073]
[1693486765040,0.07269289,223.78,223.44,0.19041073]
[1693486765240,0.07269289,223.78,223.39,0.19041073]
[1693486765541,0.07269289,223.78,223.4,0.19041073]
[1693486765742,0.07269289,223.78,223.39,0.26349064]
[1693486766044,0.07269289,223.78,223.4,0.19041073]
[1693486766542,0.07269289,223.78,223.41,0.19041073]
[1693486766743,0.07269289,223.78,223.39,0.19041073]
[1693486766938,0.07269289,223.78,223.4,0.19041073]
[1693486767145,0.07269289,223.78,223.41,0.19041073]
[1693486767344,0.07269289,223.78,223.39,0.19041073]
[1693486767545,0.07269289,223.78,223.4,0.19041073]
[1693486767844,0.07269289,223.78,223.41,0.19041073]
[1693486768145,0.07269289,223.78,223.42,0.19041073]
[1693486768346,0.07269289,223.78,223.43,0.19041073]
[1693486768542,0.07269289,223.78,223.39,0.19041073]
[1693486768742,0.07269289,223.77,223.4,0.19041073]
[1693486768945,0.07269289,223.77,223.39,0.19041073]
[1693486769241,0.07269289,223.78,223.4,0.19041073]
[1693486769437,0.07269289,223.78,223.41,0.19041073]
[1693486769641,0.07269289,223.77,223.39,0.19041073]
[1693486769842,0.07269289,223.77,223.4,0.19041073]
[1693486770043,0.07269289,223.77,223.39,0.19041073]
[1693486770238,0.07269289,223.77,223.4,0.19041073]
[1693486770443,0.07269289,223.76,223.39,0.19041073]
[1693486770642,0.07269289,223.76,223.4,0.19041073]
[1693486770942,0.07269289,223.76,223.41,0.19041073]
[1693486771139,0.07269289,223.76,223.38,0.19041073]
[1693486771342,0.07269289,223.76,223.39,0.19041073]
[1693486771543,0.07269289,223.76,223.38,0.19041073]
[1693486771743,0.07269289,223.76,223.39,0.19041073]
[1693486771943,0.07269289,223.76,223.4,0.19041073]
[1693486772144,0.07269289,223.76,223.41,0.19041073]
[1693486772440,0.07269289,223.76,223.37,0.07307991]
[1693486772441,0.07269289,223.75,223.42,0.19041073]
[1693486772643,0.07269289,223.75,223.43,0.19041073]
[1693486772942,0.07269289,223.75,223.44,0.19041073]
[1693486773142,0.07269289,223.75,223.45,0.19041073]
[1693486773343,0.07269289,223.75,223.46,0.19041073]
[1693486773542,0.07269289,223.75,223.38,0.19041073]
[1693486773743,0.07269289,223.74,223.39,0.19041073]
[1693486774444,0.07269289,223.74,223.4,0.19041073]
[1693486774739,0.07269289,223.73,223.41,0.19041073]
[1693486774945,0.07269289,223.73,223.42,0.19041073]
[1693486775143,0.07269289,223.73,223.38,0.07307991]
[1693486775144,0.07269289,223.73,223.43,0.19041073]
[1693486775345,0.07269289,223.73,223.39,0.19041073]
[1693486775646,0.07269289,223.73,223.4,0.19041073]
[1693486775839,0.07269289,223.73,223.41,0.19041073]